bitfinex-derivatives/quotes_BTCF0:USTF0_20210404
["timestamp","ask_amount","ask_price","bid_price","bid_amount"]
[1617529860355,0.10725655,57608.0,57607.0,0.69187112]
[1617529861955,0.10725655,57608.0,57607.0,1.13326329]
[1617529862756,0.10725655,57608.0,57607.0,4.57506329]
[1617529863756,0.10725655,57608.0,57607.0,4.66665654]
[1617529865560,0.10725655,57608.0,57607.0,5.16798796]
[1617529874168,0.10725655,57608.0,57607.0,1.87128796]
[1617529874970,0.10725655,57608.0,57607.0,1.13326329]
[1617529878672,0.10725655,57608.0,57607.0,3.72976329]
[1617529879072,0.10725655,57608.0,57607.0,3.82135653]
[1617529884183,0.10725655,57608.0,57607.0,1.22485653]
[1617529884684,2.61925655,57608.0,57607.0,1.22485653]
[1617529884883,2.76624655,57608.0,57607.0,1.13326329]
[1617529885383,0.25424655,57608.0,57607.0,1.13326329]
[1617529886284,0.25424655,57608.0,57607.0,4.68396329]
[1617529886885,0.25424655,57608.0,57607.0,4.77555427]
[1617529887485,0.10725655,57608.0,57607.0,4.77555427]
[1617529894898,0.10725655,57608.0,57607.0,5.42063809]
[1617529895298,0.10725655,57608.0,57607.0,5.27816531]
[1617529903308,0.10725655,57608.0,57607.0,1.72746531]
[1617529904109,0.10725655,57608.0,57607.0,1.63587433]
[1617529905111,0.10725655,57608.0,57607.0,4.89497433]
[1617529905713,0.10939072,57608.0,57607.0,4.9865654]
[1617529906116,0.10725655,57608.0,57607.0,4.9865654]
[1617529908117,0.00213417,57609.0,57607.0,4.9865654]
[1617529908517,0.10725655,57608.0,57607.0,4.9865654]
[1617529908719,0.21906655,57608.0,57607.0,4.9865654]
[1617529908917,0.21906655,57608.0,57607.0,3.5291]
[1617529909218,0.21906655,57608.0,57607.0,4.9784951]
[1617529909620,0.21906655,57608.0,57607.0,4.83601961]
[1617529911424,0.22120072,57608.0,57607.0,4.83601961]
[1617529911827,0.10939072,57608.0,57607.0,4.83601961]
[1617529912125,0.10725655,57608.0,57607.0,4.83601961]
[1617529915126,0.20974655,57608.0,57607.0,4.83601961]
[1617529916128,0.21492971,57608.0,57607.0,4.83601961]
[1617529916628,0.21188081,57608.0,57607.0,1.57691961]
[1617529917027,4.63751142,57608.0,57607.0,1.57691961]
[1617529918028,4.93225455,57608.0,57607.0,1.57691961]
[1617529919729,1.51475455,57608.0,57607.0,1.57691961]
[1617529920130,3.01475455,57608.0,57607.0,1.30691961]
[1617529920331,6.54155455,57608.0,57607.0,1.30691961]
[1617529920730,5.85493052,57608.0,57607.0,0.80425822]
[1617529921330,2.32813052,57608.0,57607.0,0.80425822]
[1617529923733,1.32813052,57608.0,57600.0,2.0]
[1617529923934,1.32813052,57608.0,57607.0,2.94594399]
[1617529924334,1.32813052,57608.0,57607.0,3.3892078]
[1617529924737,1.12505755,57608.0,57607.0,4.42270256]
[1617529925136,1.12505755,57608.0,57607.0,3.91913538]
[1617529925536,0.7590282,57608.0,57607.0,3.91913538]
[1617529925737,0.6565382,57608.0,57607.0,3.91913538]
[1617529925938,0.41226455,57608.0,57607.0,3.91913538]
[1617529926137,0.305008,57608.0,57607.0,3.91913538]
[1617529926538,0.00213367,57608.0,57607.0,4.42142743]
[1617529926938,0.00518177,57610.0,57607.0,4.42142743]
[1617529926939,0.00213362,57610.0,57607.0,4.42142743]
[1617529927439,0.00213362,57609.0,57608.0,0.15264832]
[1617529927838,0.01026165,57611.0,57608.0,1.46793696]
[1617529927839,0.00213357,57611.0,57608.0,1.46793696]
[1617529928038,0.00213357,57611.0,57608.0,1.66793696]
[1617529928438,0.00213353,57612.0,57610.0,1.30512131]
[1617529928838,0.00213326,57613.0,57611.0,1.5745817]
[1617529929239,0.00213324,57617.0,57611.0,1.92720096]
[1617529929639,0.00213324,57617.0,57613.0,1.30352048]
[1617529929946,0.00518073,57618.0,57613.0,1.30352048]
[1617529929947,0.00213327,57616.0,57614.0,0.27]
[1617529930441,0.00213327,57616.0,57615.0,1.36477396]
[1617529930641,0.00213327,57616.0,57615.0,1.47203051]
[1617529930843,0.00213327,57616.0,57615.0,1.48203051]
[1617529931845,0.01026013,57616.0,57615.0,1.48203051]
[1617529932247,0.30485736,57616.0,57615.0,1.48203051]
[1617529933245,0.30485736,57616.0,57615.0,0.98060105]
[1617529933745,0.30485736,57616.0,57615.0,1.48232279]
[1617529935346,0.30480899,57617.0,57615.0,1.48232279]
[1617529936047,0.36575933,57618.0,57616.0,0.86397385]
[1617529936446,0.36575933,57618.0,57617.0,0.27]
[1617529936646,0.36575933,57618.0,57617.0,1.07302131]
[1617529937048,0.30481243,57618.0,57617.0,1.13407993]
[1617529939953,0.67049656,57618.0,57617.0,1.13407993]
[1617529940351,0.91473865,57618.0,57617.0,1.13407993]
[1617529941052,1.91473865,57618.0,57617.0,1.13407993]
[1617529941253,0.91473865,57618.0,57617.0,0.69241821]
[1617529941751,0.81513656,57618.0,57617.0,1.1342623]
[1617529942153,0.81513656,57618.0,57617.0,0.69241821]
[1617529942353,1.05938011,57618.0,57617.0,0.33105862]
[1617529942853,1.05938011,57618.0,57617.0,0.69270828]
[1617529943253,1.05938011,57618.0,57617.0,0.63164966]
[1617529943752,1.05938011,57618.0,57617.0,0.69271059]
[1617529944381,0.91474011,57618.0,57617.0,0.69271059]
[1617529944761,0.91474011,57618.0,57617.0,1.13456138]
[1617529945154,0.30481243,57618.0,57617.0,1.13456138]
[1617529947856,0.30481243,57618.0,57617.0,1.63633859]
[1617529947857,0.0102571,57618.0,57617.0,1.63633859]
[1617529948856,0.0102571,57618.0,57617.0,4.32753859]
[1617529949257,0.00517929,57618.0,57617.0,4.32753859]
[1617529949657,0.00517929,57618.0,57617.0,4.41912442]
[1617529950257,0.00213256,57618.0,57617.0,4.41912442]
[1617529951660,0.00213201,57619.0,57617.0,4.41912442]
[1617529952063,0.00213195,57621.0,57618.0,1.45507525]
[1617529952362,0.00213195,57620.0,57618.0,0.15263525]
[1617529952562,0.00213195,57620.0,57619.0,0.41632]
[1617529952761,0.0051776,57622.0,57619.0,1.77991673]
[1617529952762,0.00213195,57621.0,57619.0,1.77991673]
[1617529953366,0.00213195,57621.0,57620.0,1.36354072]
[1617529953663,0.00213182,57623.0,57620.0,1.45511622]
[1617529953863,0.00213182,57623.0,57620.0,1.72511622]
[1617529954062,0.00213182,57623.0,57621.0,1.0]
[1617529954265,0.00213178,57624.0,57622.0,1.30189828]
[1617529954464,0.00213178,57624.0,57622.0,1.57189828]
[1617529954667,0.00213178,57624.0,57622.0,1.63294737]
[1617529954867,0.00213178,57624.0,57623.0,0.10725655]
[1617529955066,0.00213178,57624.0,57623.0,1.46996846]
[1617529955265,0.00213178,57624.0,57623.0,1.73996846]
[1617529956966,0.00212927,57625.0,57623.0,1.23932893]
[1617529957566,0.00212927,57625.0,57624.0,0.86115113]
[1617529957966,0.00212924,57626.0,57624.0,1.13115113]
[1617529958366,0.00212924,57626.0,57625.0,0.86103273]
[1617529958765,0.00212924,57626.0,57625.0,1.13103273]
[1617529959565,0.00212924,57627.0,57625.0,1.13103273]
[1617529959967,0.00212924,57627.0,57626.0,0.86096438]
[1617529960368,0.00212924,57627.0,57626.0,1.13096438]
[1617529962072,0.00517098,57627.0,57626.0,1.13096438]
[1617529962473,0.00517098,57627.0,57626.0,4.78106438]
[1617529963073,0.01023707,57627.0,57626.0,4.34111067]
[1617529964175,0.00516925,57627.0,57626.0,4.7810682]
[1617529964674,0.00516925,57627.0,57626.0,4.34111067]
[1617529965476,0.00516925,57627.0,57626.0,4.78092084]
[1617529965676,0.0021285,57627.0,57626.0,4.78092084]
[1617529966777,0.010237,57628.0,57626.0,4.34111067]
[1617529967176,0.010237,57628.0,57627.0,0.4209195]
[1617529967376,0.010237,57628.0,57627.0,0.06104894]
[1617529967577,0.010237,57628.0,57627.0,0.69087793]
[1617529967977,0.00212807,57628.0,57627.0,1.13054442]
[1617529968578,0.00212807,57629.0,57627.0,1.13054442]
[1617529968979,0.00212807,57629.0,57628.0,0.86028479]
[1617529969379,0.00212807,57629.0,57628.0,1.13028479]
[1617529969680,0.11242473,57630.0,57628.0,1.13028479]
[1617529970081,0.11242473,57630.0,57629.0,0.42075509]
[1617529970480,0.11242473,57630.0,57629.0,0.69075509]
[1617529971081,0.10725655,57630.0,57629.0,0.95115164]
[1617529971483,0.11242469,57630.0,57629.0,0.95115164]
[1617529972283,0.10725655,57630.0,57629.0,0.95115164]
[1617529973285,0.11242275,57630.0,57629.0,0.95115164]
[1617529973686,0.10725655,57630.0,57629.0,0.95115164]
[1617529974091,0.10938381,57630.0,57629.0,0.95115164]
[1617529976392,0.10725655,57630.0,57629.0,0.95115164]
[1617529978093,0.1093838,57630.0,57629.0,0.95115164]
[1617529979795,0.10725655,57630.0,57629.0,0.95115164]
[1617529980196,0.10938343,57630.0,57629.0,0.95115164]
[1617529981497,0.00212688,57630.0,57629.0,0.95115164]
[1617529981698,0.00212688,57630.0,57629.0,4.95855164]
[1617529982098,0.00212668,57636.0,57629.0,5.48813563]
[1617529982297,0.00212668,57636.0,57630.0,0.2]
[1617529982499,0.00212664,57638.0,57635.0,0.79623523]
[1617529982899,0.00212664,57638.0,57636.0,0.01]
[1617529983100,0.00212661,57639.0,57637.0,0.10725655]
[1617529983400,0.00212661,57639.0,57638.0,0.41924407]
[1617529983599,0.00212661,57639.0,57638.0,0.68924407]
[1617529984202,0.00212658,57640.0,57638.0,0.68924407]
[1617529984702,0.00212658,57640.0,57639.0,0.41917128]
[1617529985104,0.01024278,57640.0,57639.0,1.1275158]
[1617529985505,0.00517219,57640.0,57639.0,1.1275158]
[1617529990110,0.00517217,57641.0,57639.0,1.1275158]
[1617529990611,0.00212972,57640.0,57639.0,1.1275158]
[1617529992314,0.01024295,57641.0,57639.0,1.1275158]
[1617529992816,0.01024295,57641.0,57640.0,0.85776059]
[1617529993215,0.01024295,57641.0,57640.0,1.12776059]
[1617529994117,0.00517212,57641.0,57640.0,1.12776059]
[1617529994819,0.00212633,57642.0,57640.0,0.68956301]
[1617529995217,0.00212633,57642.0,57641.0,0.41796259]
[1617529995418,0.00212633,57642.0,57641.0,0.58505259]
[1617529995617,0.00212633,57642.0,57641.0,0.85505259]
[1617529996518,0.00212659,57643.0,57641.0,0.85505259]
[1617529996918,0.00212659,57642.0,57641.0,0.43709]
[1617529997319,0.00212659,57642.0,57641.0,0.79397986]
[1617530002124,0.00212661,57643.0,57641.0,0.79397986]
[1617530002523,0.00212661,57643.0,57642.0,0.41788562]
[1617530002924,0.00212661,57643.0,57642.0,0.68788562]
[1617530004023,0.00212661,57643.0,57642.0,0.83245562]
[1617530004224,0.00516461,57644.0,57642.0,0.83245562]
[1617530004624,0.00516461,57644.0,57642.0,0.41457]
[1617530004625,0.00212662,57643.0,57642.0,0.41457]
[1617530005424,0.00212662,57643.0,57642.0,0.77140473]
[1617530005926,0.00516713,57643.0,57642.0,0.77140473]
[1617530006325,0.00516713,57643.0,57642.0,0.83244153]
[1617530007228,0.00516713,57643.0,57642.0,0.93969808]
[1617530007828,0.01023295,57644.0,57643.0,2.6762]
[1617530008028,0.01023291,57645.0,57643.0,2.6762]
[1617530008228,0.01023291,57645.0,57643.0,0.27]
[1617530008429,0.01023282,57644.0,57643.0,0.68784113]
[1617530008829,0.01023275,57645.0,57644.0,0.35683686]
[1617530009229,0.01023275,57645.0,57644.0,0.01]
[1617530009629,0.30404748,57645.0,57644.0,0.0710361]
[1617530012031,0.30404748,57645.0,57644.0,0.01]
[1617530012432,0.30404748,57645.0,57643.0,0.62710901]
[1617530012634,0.41200748,57645.0,57643.0,0.68814662]
[1617530012833,0.41200748,57645.0,57644.0,0.27]
[1617530013032,0.10796,57645.0,57644.0,0.33103789]
[1617530013633,0.41201629,57645.0,57644.0,0.33103789]
[1617530015238,0.41201629,57645.0,57644.0,0.68801943]
[1617530016438,0.30405629,57645.0,57644.0,0.68801943]
[1617530018441,0.01023433,57645.0,57644.0,0.68801943]
[1617530018643,0.00516778,57645.0,57644.0,3.44061943]
[1617530018843,0.00516778,57645.0,57644.0,4.44061943]
[1617530019042,0.00516767,57646.0,57644.0,4.44061943]
[1617530019443,0.00212785,57645.0,57644.0,3.45869012]
[1617530019844,0.00212785,57645.0,57644.0,3.81548727]
[1617530021146,0.00212785,57646.0,57644.0,3.81548727]
[1617530021547,0.00212785,57646.0,57644.0,4.81548727]
[1617530021848,0.00212785,57646.0,57645.0,1.0]
[1617530022048,0.00212785,57646.0,57645.0,1.94526992]
[1617530022249,0.00212785,57646.0,57645.0,2.26706992]
[1617530022448,0.0021278,57647.0,57645.0,2.21526992]
[1617530022850,0.0021278,57647.0,57646.0,1.0]
[1617530023249,0.0021278,57647.0,57646.0,0.27]
[1617530023449,0.0021278,57647.0,57646.0,1.12363]
[1617530023849,0.0021278,57647.0,57646.0,0.68770043]
[1617530025249,0.0021278,57647.0,57646.0,1.68770043]
[1617530025451,0.00516751,57648.0,57646.0,1.68770043]
[1617530026150,0.00516751,57648.0,57647.0,0.41792564]
[1617530026557,0.00516751,57648.0,57647.0,0.68792564]
[1617530027754,0.01024093,57648.0,57647.0,1.1245759]
[1617530028762,0.00517095,57648.0,57647.0,1.1245759]
[1617530029553,0.00212918,57648.0,57647.0,1.1245759]
[1617530032458,0.00212916,57649.0,57647.0,1.1245759]
[1617530032760,0.00212916,57649.0,57648.0,0.85473374]
[1617530033162,0.00212916,57649.0,57648.0,1.12473374]
[1617530033360,0.00212916,57649.0,57648.0,2.23199029]
[1617530034461,0.00212916,57649.0,57648.0,1.81379512]
[1617530035766,0.00212903,57650.0,57648.0,1.81379512]
[1617530036265,0.00212903,57650.0,57649.0,0.79438155]
[1617530036466,0.00212903,57650.0,57649.0,1.79438155]
[1617530036666,0.00212903,57650.0,57649.0,2.06438155]
[1617530037168,0.00212893,57651.0,57649.0,2.06438155]
[1617530037669,0.10938401,57653.0,57650.0,0.85463682]
[1617530038068,0.10938401,57653.0,57651.0,0.40191]
[1617530038271,0.10938401,57653.0,57652.0,0.79363823]
[1617530038469,0.10725655,57653.0,57652.0,0.85465879]
[1617530038668,0.10725655,57653.0,57652.0,1.12465879]
[1617530039068,0.4116919,57653.0,57652.0,1.12465879]
[1617530039369,0.10725655,57653.0,57652.0,1.12465879]
[1617530040569,0.41169307,57653.0,57652.0,1.12465879]
[1617530041370,0.11750231,57653.0,57652.0,1.12465879]
[1617530042570,0.11750231,57653.0,57652.0,4.69215879]
[1617530042972,0.11750231,57653.0,57652.0,4.7836881]
[1617530043176,0.11750231,57653.0,57652.0,5.7836881]
[1617530044675,0.11750231,57653.0,57652.0,4.7836881]
[1617530045478,0.11750231,57653.0,57652.0,5.7836881]
[1617530046077,0.10725655,57653.0,57652.0,4.7836881]
[1617530046577,0.11750226,57653.0,57652.0,4.7836881]
[1617530049483,0.16950226,57653.0,57652.0,4.7836881]
[1617530049683,0.11750226,57653.0,57652.0,4.7836881]
[1617530051284,0.10725655,57653.0,57652.0,4.7836881]
[1617530051684,0.1124284,57653.0,57652.0,4.7836881]
[1617530052291,0.1639284,57653.0,57652.0,4.7836881]
[1617530052485,0.1124284,57653.0,57652.0,4.7836881]
[1617530055390,0.2429084,57653.0,57652.0,4.7836881]
[1617530055890,0.23773655,57653.0,57652.0,4.7836881]
[1617530056291,0.24290814,57653.0,57652.0,4.7836881]
[1617530056689,0.23773655,57653.0,57652.0,4.7836881]
[1617530058091,0.24797828,57653.0,57652.0,4.7836881]
[1617530058493,0.54204963,57653.0,57652.0,4.7836881]
[1617530059794,0.24797827,57653.0,57652.0,4.7836881]
[1617530059994,0.11749827,57653.0,57652.0,4.7836881]
[1617530063201,0.41158002,57653.0,57652.0,4.7836881]
[1617530063498,0.41158002,57653.0,57652.0,1.2161881]
[1617530063699,0.11749875,57653.0,57652.0,1.2161881]
[1617530064097,0.11749875,57653.0,57652.0,1.12465879]
[1617530066197,0.24477655,57653.0,57652.0,1.12465879]
[1617530066599,1.24477655,57653.0,57652.0,0.85465879]
[1617530066799,1.91437724,57653.0,57652.0,0.41815776]
[1617530067400,2.36074757,57653.0,57651.0,0.35867031]
[1617530067799,0.91373337,57652.0,57650.0,0.35867723]
[1617530068603,1.66965608,57651.0,57649.0,0.35875033]
[1617530069301,0.91377427,57650.0,57649.0,0.35875033]
[1617530070001,0.6696617,57650.0,57649.0,0.35875033]
[1617530072303,0.91377512,57650.0,57649.0,0.35875033]
[1617530075704,0.91377512,57650.0,57649.0,3.76805033]
[1617530075904,0.6696617,57650.0,57649.0,3.76805033]
[1617530076607,0.6696617,57650.0,57649.0,3.82907823]
[1617530081413,0.6696617,57650.0,57649.0,0.41977823]
[1617530081613,0.6696617,57650.0,57649.0,0.68977823]
[1617530082016,0.6696617,57650.0,57649.0,0.62875033]
[1617530082417,0.91377143,57650.0,57649.0,1.12813536]
[1617530082814,0.6696617,57650.0,57649.0,0.62875033]
[1617530083014,0.6696617,57650.0,57649.0,3.59165033]
[1617530083214,0.91376347,57650.0,57649.0,4.09106142]
[1617530083817,0.3044009,57650.0,57649.0,4.18259667]
[1617530084118,0.66979918,57650.0,57649.0,4.18259667]
[1617530084520,0.3044009,57650.0,57649.0,4.18259667]
[1617530087123,0.3044009,57650.0,57649.0,1.21969667]
[1617530087725,0.3044009,57650.0,57649.0,1.12816142]
[1617530089826,0.66973925,57650.0,57649.0,0.68977577]
[1617530090426,0.91383818,57650.0,57649.0,0.68977577]
[1617530091128,0.3044009,57650.0,57649.0,1.12823788]
[1617530092029,0.66973843,57650.0,57649.0,0.68977577]
[1617530092930,0.91383583,57650.0,57649.0,1.12853228]
[1617530093934,0.3044009,57650.0,57649.0,1.12853228]
[1617530097641,0.66977149,57650.0,57649.0,1.12853228]
[1617530098039,0.3044009,57650.0,57649.0,1.12853228]
[1617530098439,0.66978051,57650.0,57649.0,1.12853228]
[1617530098939,0.3044009,57650.0,57649.0,1.12853228]
[1617530099339,0.54849967,57650.0,57649.0,1.12853228]
[1617530099838,0.3044009,57650.0,57649.0,1.12853228]
[1617530105248,0.30454943,57651.0,57649.0,1.12853228]
[1617530105846,0.30454943,57651.0,57650.0,0.85892256]
[1617530106045,0.30454943,57651.0,57650.0,3.96552256]
[1617530106245,0.30454943,57651.0,57650.0,4.23552256]
[1617530106246,0.35674943,57651.0,57650.0,4.23552256]
[1617530106445,0.30454943,57651.0,57650.0,4.23552256]
[1617530106646,0.30454943,57651.0,57650.0,4.32705363]
[1617530107447,0.30454943,57651.0,57650.0,1.22045363]
[1617530107851,0.30454194,57652.0,57650.0,1.12892256]
[1617530108453,0.30454194,57652.0,57651.0,0.85908284]
[1617530108851,0.47268852,57653.0,57651.0,1.12908284]
[1617530109252,0.30454407,57652.0,57651.0,0.33102019]
[1617530109651,0.30454407,57652.0,57651.0,1.12944301]
[1617530111853,0.67002499,57652.0,57651.0,1.12944301]
[1617530112153,0.91410781,57652.0,57651.0,1.12944301]
[1617530113155,0.30454407,57652.0,57651.0,1.12944301]
[1617530120164,0.67011435,57652.0,57651.0,1.12944301]
[1617530121174,0.30454407,57652.0,57651.0,1.12944301]
[1617530123276,0.67011088,57652.0,57651.0,1.12944301]
[1617530123677,0.36556681,57652.0,57651.0,1.12944301]
[1617530124075,0.91430431,57652.0,57651.0,1.12944301]
[1617530124275,0.91430431,57652.0,57651.0,0.33102019]
[1617530124577,0.91430431,57652.0,57651.0,1.1310869]
[1617530126583,0.5487375,57652.0,57651.0,1.1310869]
[1617530127081,0.9143055,57652.0,57651.0,1.1310869]
[1617530129986,0.9668055,57652.0,57651.0,1.1310869]
[1617530130186,0.9143055,57652.0,57651.0,1.1310869]
[1617530131687,0.9668055,57652.0,57651.0,1.1824869]
[1617530132288,0.9668055,57652.0,57651.0,1.68291844]
[1617530132289,0.35715714,57652.0,57651.0,1.68291844]
[1617530132489,0.35715714,57652.0,57651.0,5.03541844]
[1617530133090,0.35715714,57652.0,57651.0,5.12694543]
[1617530134095,0.35715714,57652.0,57651.0,5.07554543]
[1617530134295,0.30465714,57652.0,57651.0,5.07554543]
[1617530136694,0.35705714,57652.0,57651.0,5.07554543]
[1617530137095,0.30465714,57652.0,57651.0,5.07554543]
[1617530139797,1.56876578,57674.0,57651.0,5.07554543]
[1617530139798,0.3047416,57653.0,57651.0,5.07554543]
[1617530140198,0.3047416,57653.0,57652.0,0.10725655]
[1617530140398,0.3047416,57653.0,57652.0,1.56080123]
[1617530140598,0.3047416,57653.0,57652.0,1.83080123]
[1617530140998,0.67041423,57653.0,57652.0,1.23889122]
[1617530141600,0.3047416,57653.0,57652.0,1.23889122]
[1617530142401,0.3047416,57653.0,57652.0,1.73946473]
[1617530143203,0.67047056,57653.0,57652.0,1.23889122]
[1617530143603,0.72177056,57653.0,57652.0,1.29089122]
[1617530144003,0.96583549,57653.0,57652.0,1.29089122]
[1617530144602,0.96583549,57653.0,57652.0,4.11139122]
[1617530145002,0.91453549,57653.0,57652.0,4.11139122]
[1617530145202,0.91453549,57653.0,57652.0,4.20291551]
[1617530145602,0.67047056,57653.0,57652.0,4.15091551]
[1617530150004,0.3047416,57653.0,57652.0,4.65164669]
[1617530152506,0.67049545,57653.0,57652.0,4.15091551]
[1617530153109,0.67049545,57653.0,57652.0,4.65223249]
[1617530153508,0.91455945,57653.0,57652.0,4.65223249]
[1617530154108,0.67049545,57653.0,57652.0,4.65223249]
[1617530155009,0.67049545,57653.0,57652.0,1.83173249]
[1617530155209,0.78668545,57653.0,57652.0,1.83173249]
[1617530155609,0.78668545,57653.0,57652.0,1.7402082]
[1617530156010,0.78668545,57653.0,57652.0,1.23889122]
[1617530156011,1.03075145,57653.0,57652.0,1.23889122]
[1617530157811,0.91456145,57653.0,57652.0,1.38365122]
[1617530158411,0.67049545,57653.0,57652.0,1.38365122]
[1617530158611,0.67049545,57653.0,57652.0,4.27625122]
[1617530159212,0.67049545,57653.0,57652.0,1.4751769]
[1617530159613,0.67049545,57653.0,57652.0,1.23889122]
[1617530162419,0.67049545,57653.0,57652.0,1.74047069]
[1617530163017,0.67049545,57653.0,57652.0,1.84287069]
[1617530163218,3.48309545,57653.0,57652.0,1.84287069]
[1617530163619,3.72715907,57653.0,57652.0,1.84287069]
[1617530164721,3.72715907,57653.0,57652.0,1.74047069]
[1617530167228,3.72715907,57653.0,57652.0,1.23889122]
[1617530168330,0.91455907,57653.0,57652.0,1.23889122]
[1617530168731,0.91455907,57653.0,57652.0,4.85803122]
[1617530169531,0.91455907,57653.0,57652.0,1.83195433]
[1617530169732,0.91455907,57653.0,57652.0,5.48725433]
[1617530169934,0.67049545,57653.0,57652.0,5.39573122]
[1617530170432,0.67049545,57653.0,57652.0,5.48725441]
[1617530170633,0.67049545,57653.0,57652.0,1.83195441]
[1617530171233,0.67049545,57653.0,57652.0,1.74043122]
[1617530176337,0.67049545,57653.0,57652.0,1.23889122]
[1617530179847,0.91456499,57653.0,57652.0,1.23889122]
[1617530180347,0.67049545,57653.0,57652.0,1.23889122]
[1617530180749,0.91456748,57653.0,57652.0,1.23889122]
[1617530181149,0.67049545,57653.0,57652.0,1.23889122]
[1617530181548,0.91456796,57653.0,57652.0,1.23889122]
[1617530181949,0.67049545,57653.0,57652.0,1.23889122]
[1617530182450,0.91456752,57653.0,57652.0,1.23889122]
[1617530182851,0.67049545,57653.0,57652.0,1.23889122]
[1617530187960,0.87049545,57653.0,57652.0,1.23889122]
[1617530188961,1.56183093,57653.0,57652.0,1.23889122]
[1617530189161,1.31775354,57653.0,57652.0,1.23889122]
[1617530189663,1.56183071,57653.0,57652.0,1.23889122]
[1617530191264,4.74143071,57653.0,57652.0,1.23889122]
[1617530192865,4.29417262,57653.0,57652.0,1.23889122]
[1617530193265,4.7414437,57653.0,57652.0,1.23889122]
[1617530194065,4.7414437,57653.0,57652.0,1.13163467]
[1617530194265,4.7414437,57653.0,57652.0,0.86163467]
[1617530194266,7.2414437,57653.0,57652.0,0.86163467]
[1617530194465,7.2414437,57653.0,57652.0,0.77403467]
[1617530194664,7.2414437,57653.0,57652.0,0.76963467]
[1617530194865,7.74973657,57653.0,57652.0,0.40879399]
[1617530195066,7.74973657,57653.0,57651.0,0.36222147]
[1617530195266,7.80173657,57653.0,57651.0,0.36222147]
[1617530195670,6.80173657,57653.0,57652.0,0.06102956]
[1617530196069,6.80173657,57653.0,57647.0,0.3625505]
[1617530196469,2.17945832,57648.0,57645.0,0.36266564]
[1617530196669,1.5517,57647.0,57645.0,0.36266564]
[1617530196870,1.17945168,57646.0,57645.0,0.36266564]
[1617530197069,2.92077823,57646.0,57645.0,0.36266564]
[1617530197370,3.16491441,57646.0,57645.0,0.36266564]
[1617530197770,3.16491441,57646.0,57640.0,0.361543]
[1617530197771,2.65655986,57646.0,57640.0,0.361543]
[1617530198174,0.66912432,57641.0,57638.0,0.27]
[1617530198371,1.66912432,57641.0,57638.0,0.27]
[1617530198571,1.66912432,57641.0,57633.0,0.07103412]
[1617530198772,0.36496799,57640.0,57639.0,0.69260174]
[1617530198971,0.47222454,57640.0,57639.0,0.42260174]
[1617530199172,0.00516893,57637.0,57634.0,0.06103396]
[1617530199572,0.00516893,57637.0,57635.0,0.27]
[1617530199774,0.41141238,57640.0,57639.0,0.42248791]
[1617530200174,0.00516884,57638.0,57636.0,0.4224329]
[1617530200574,0.41140765,57640.0,57637.0,0.36145358]
[1617530200975,0.11749288,57640.0,57639.0,0.46865628]
[1617530201375,0.10725655,57640.0,57639.0,0.46865628]
[1617530201673,0.10725655,57640.0,57639.0,0.73865628]
[1617530202074,0.11749266,57640.0,57639.0,0.79968789]
[1617530205788,0.11242529,57640.0,57639.0,0.79968789]
[1617530206779,0.10725655,57640.0,57639.0,0.37725655]
[1617530207281,0.11749272,57640.0,57639.0,0.73854721]
[1617530208080,0.11749272,57640.0,57639.0,0.63129066]
[1617530208282,2.61749272,57640.0,57639.0,0.36129066]
[1617530208481,2.91125323,57640.0,57639.0,0.36129066]
[1617530208881,6.40173447,57640.0,57634.0,0.36167148]
[1617530209482,1.0,57635.0,57634.0,0.36167148]
[1617530209684,1.30400284,57635.0,57634.0,0.36167148]
[1617530210184,1.30400284,57635.0,57624.0,0.60953218]
[1617530210185,2.41293969,57635.0,57633.0,0.36178611]
[1617530210385,0.17938,57634.0,57633.0,0.36178611]
[1617530210585,0.17938,57634.0,57625.0,0.06103825]
[1617530210586,0.17938,57634.0,57631.0,0.36200157]
[1617530210989,0.17938,57634.0,57628.0,0.3621597]
[1617530210990,0.77608194,57632.0,57628.0,0.3621597]
[1617530211188,1.5,57631.0,57628.0,0.3621597]
[1617530211388,1.5,57631.0,57625.0,0.36230969]
[1617530211688,1.5,57631.0,57625.0,0.31930969]
[1617530211891,0.30403358,57629.0,57619.0,0.27]
[1617530212088,0.30403358,57629.0,57615.0,0.5032079]
[1617530212288,0.17083754,57621.0,57616.0,0.01]
[1617530212488,0.17083754,57621.0,57620.0,0.27]
[1617530212688,1.17083754,57621.0,57615.0,0.56425322]
[1617530212888,1.17083754,57621.0,57617.0,0.27]
[1617530213089,0.17387702,57621.0,57620.0,0.06104631]
[1617530213491,0.17894299,57621.0,57620.0,0.27]
[1617530213889,0.17894299,57621.0,57614.0,0.4982]
[1617530213890,0.30405643,57620.0,57619.0,0.27]
[1617530214103,0.30405643,57620.0,57619.0,2.8926]
[1617530214290,0.00212754,57620.0,57619.0,2.6226]
[1617530214492,0.00212754,57620.0,57619.0,2.8926]
[1617530214690,0.00212747,57625.0,57619.0,2.98416385]
[1617530214896,0.00212747,57625.0,57619.0,3.14392385]
[1617530215089,0.0102321,57627.0,57619.0,3.14392385]
[1617530215090,0.0021274,57627.0,57624.0,0.54960616]
[1617530215489,0.0021274,57627.0,57625.0,0.27]
[1617530215690,0.0021274,57627.0,57626.0,0.44227768]
[1617530215991,0.0021274,57627.0,57626.0,0.77331819]
[1617530217090,0.10938395,57627.0,57626.0,0.77331819]
[1617530217490,0.10938395,57627.0,57626.0,0.33104051]
[1617530217491,0.11242313,57627.0,57626.0,0.33104051]
[1617530217892,0.10938396,57627.0,57626.0,0.77330955]
[1617530218496,0.10725655,57627.0,57626.0,0.77330955]
[1617530223799,0.25138655,57627.0,57626.0,0.77330955]
[1617530225199,0.10725655,57627.0,57626.0,0.77330955]
[1617530225400,0.10725655,57627.0,57626.0,3.44030955]
[1617530226001,0.00212578,57635.0,57626.0,4.03352628]
[1617530226402,0.00516261,57636.0,57633.0,0.44133219]
[1617530226403,0.00212574,57636.0,57633.0,0.44133219]
[1617530226800,0.00212574,57637.0,57634.0,0.27]
[1617530227001,0.00212574,57637.0,57636.0,0.10725655]
[1617530227402,0.00212574,57637.0,57636.0,0.37725655]
[1617530227801,0.00212574,57637.0,57636.0,0.43829258]
[1617530228002,0.00212574,57637.0,57636.0,0.60221258]
[1617530228803,0.10938311,57638.0,57636.0,1.04343162]
[1617530229202,0.10938311,57638.0,57637.0,0.06103487]
[1617530229403,0.10938311,57638.0,57636.0,0.98239559]
[1617530229605,0.10938311,57638.0,57637.0,0.27]
[1617530230005,0.10725655,57638.0,57637.0,0.71113979]
[1617530233108,0.00212648,57640.0,57637.0,0.71113979]
[1617530233709,0.00212648,57640.0,57638.0,0.06103231]
[1617530233909,0.00212648,57639.0,57638.0,0.06103231]
[1617530234310,0.00212648,57640.0,57638.0,0.5121111]
[1617530235313,0.00212648,57640.0,57639.0,0.0610318]
[1617530235713,0.00212648,57640.0,57639.0,0.3310318]
[1617530236313,0.00212648,57640.0,57639.0,3.9232318]
[1617530236515,0.00212648,57640.0,57639.0,4.36466309]
[1617530236516,0.0051681,57640.0,57639.0,4.36466309]
[1617530236915,0.0051681,57640.0,57639.0,4.81737597]
[1617530238618,0.01023477,57640.0,57639.0,4.81737597]